Cogmind - Beta 16 @@@ ROGUE MODE // 2025.10.22 @ 16:24:20 Player: Thqwib-Linux Result: Self-destructed Performance ------------- Evolutions (1) 500 Regions Visited (4) 800 Robots Destroyed (21) 105 Value Destroyed (497) 497 Prototype IDs (3) 60 Alien Tech Used (0) 0 Bonus (14) 14 TOTAL SCORE: 1976 Bonus ------- Follower Combat Kills 14 Cogmind --------- Core Integrity 210/400 Matter 217/300 Energy 153/160 System Corruption 0% Temperature Cool (0) Movement Walking (260) Ox2 Location -9/Storage Parts ------- > --- POWER (1) -------- Light Nuclear Core > --- PROPULSION (2) --- Aluminum Leg > --- UTILITY (4) ------ Cooling System Medium Storage Unit Hacking Suite > --- WEAPON (2) ------- Light Assault Rifle Improved Assault Rifle > --- INVENTORY (10) --- Light Ion Engine Assault Rifle Mini Grenade Launcher Mace Peak State ------------ > --- POWER ------------ Ion Engine > --- PROPULSION ------- Aluminum Leg Aluminum Leg > --- UTILITY ---------- Cooling System Disposable Heat Sink Medium Storage Unit Hacking Suite > --- WEAPON ----------- Light Assault Rifle Mini Grenade Launcher > --- INVENTORY -------- Light Ion Engine Light Nuclear Core Aluminum Leg EM Pulse Gun Assault Rifle Improved Assault Rifle Mace [Rating: 15] Favorites ----------- Power Ion Engine Engine Ion Engine Power Core Light Nuclear Core Propulsion Aluminum Leg Leg Aluminum Leg Utility Hacking Suite Device Disposable Heat Sink Storage Medium Storage Unit Hackware Hacking Suite Weapon Assault Rifle Energy Gun EM Pulse Gun Ballistic Gun Assault Rifle Launcher Mini Grenade Launcher Impact Weapon Mace Build | -11 -10 -10 -9 -9 ------- Run | Yrd Mat Min Mat Sto Slots Evolved 2 | . . . 2 . Power . | . . . . . Propulsion . | . . . . . Utility 2 | . . . 2 . Weapon . | . . . . . Parts Attached 19 | . 3 . 14 2 Power 2 | . . . 1 1 Engine 1 | . . . 1 . Core 1 | . . . . 1 Reactor . | . . . . . Propulsion 3 | . . . 2 1 Treads . | . . . . . Leg 3 | . . . 2 1 Wheel . | . . . . . Hover . | . . . . . Flight . | . . . . . Utility 5 | . 2 . 3 . Device 2 | . . . 2 . Storage 2 | . 1 . 1 . Processor . | . . . . . Hackware 1 | . 1 . . . Protection . | . . . . . Artifact . | . . . . . Weapon 9 | . 1 . 8 . Energy Gun 1 | . . . 1 . Energy Cannon . | . . . . . Ballistic Gun 6 | . 1 . 5 . Ballistic Cannon . | . . . . . Launcher 1 | . . . 1 . Special Weapon . | . . . . . Impact Weapon 1 | . . . 1 . Slashing Weapon . | . . . . . Piercing Weapon . | . . . . . Special Melee Weapon . | . . . . . Unidentified Prototypes 1 | . . . 1 . Parts Lost 6 | . . . 2 4 Power 1 | . . . . 1 Propulsion 2 | . . . . 2 Utility . | . . . . . Weapon 3 | . . . 2 1 Highest Loss Streak 4 | . . . 2 4 To Critical Strikes 1 | . . . 1 . Average Backups 6 | 5 4 6 8 6 Power 1 | 1 1 2 2 1 Propulsion . | 3 . 1 1 . Utility . | . . . . . Weapon 3 | 1 1 3 5 3 Tool/Special . | . . . . . Unused Backups 7 | . 5 . 1 1 Power 2 | . 1 . . 1 Propulsion 3 | . 2 . 1 . Utility 1 | . 1 . . . Weapon 1 | . 1 . . . Tool/Special . | . . . . . Average Slot Usage (%) 94 | . 98 100 87 87 Engine 12 | . 14 14 11 11 Leg 25 | . 28 28 22 21 Device 4 | . . . 10 11 Storage 12 | . 14 14 11 11 Hackware 12 | . 12 14 11 11 Energy Gun 10 | . 18 14 1 10 Ballistic Gun 14 | . 9 14 19 11 Peak Build Rating 15 | 6 9 9 15 14 Average Rating 10 | 6 8 9 11 12 On Entrance 8 | 6 6 9 9 14 Avg Prop Armor Cover (%) . | . . . . . Naked Turns . | . . . . . Heaviest Build 21 | 14 19 19 21 21 Greatest Support 20 | 20 20 20 20 20 Greatest Overweight (x) 5 | . . . 1 5 Average Overweight (x) . | . . . . . Largest Inventory Capacity 10 | 8 10 10 10 10 Average Capacity 9 | 8 8 10 10 10 Most Carried 10 | 5 6 6 10 7 Average Carried 6 | 4 4 6 8 6 Final Capacity 10 | 8 10 10 10 10 Final Carried 7 | 2 6 6 7 4 Class Distribution -------------------- 100% | Mutant Dominant Class ---------------- Mutant | -10/Materials Mutant | -10/Mines Mutant | -9/Materials Mutant | -9/Storage Resources | -11 -10 -10 -9 -9 ----------- Run | Yrd Mat Min Mat Sto Matter Collected 547 | 200 57 12 278 . Remotely . | . . . . . Salvage Created 680 | . 238 14 428 . Parts 46 | . 17 2 27 . Haulers Intercepted 2 | . 1 . 1 . Recyclers Shooed 2 | . . . 2 . Parts Field Recycled . | . . . . . Retrieved Matter . | . . . . . Parts Self-Destructed . | . . . . . Prevented . | . . . . . Parts Restored . | . . . . . Kills | -11 -10 -10 -9 -9 ------- Run | Yrd Mat Min Mat Sto Combat Hostiles Destroyed 18 | . 4 1 13 . Guns 18 | . 4 1 13 . Classes Destroyed 5 | . 3 1 1 . Hauler 2 | . 1 . 1 . Operator 1 | . 1 . . . Swarmer 8 | . . 1 7 . Grunt 9 | . 4 . 5 . Sentry 1 | . . . 1 . Best Kill Streak 4 | . 3 1 4 . Combat Bots Only 4 | . 2 1 4 . Max Kills in Single Turn 2 | . 1 1 2 . Gunslinging 1 | . . . 1 . Exploded . | . . . . . Melee . | . . . . . Uniques/NPCs Destroyed . | . . . . . Combat | -11 -10 -10 -9 -9 -------- Run | Yrd Mat Min Mat Sto Hostile Shots Fired 141 | . 13 25 73 30 Missed 43 | . 8 9 18 8 Hits 98 | . 5 16 55 22 Projectile 98 | . 5 16 55 22 AOE 1 | . . . . 1 Critical Strikes 3 | . . 1 1 1 Damage Taken 1170 | . 68 123 591 388 Core 228 | . 16 22 123 67 Absorbed by Shields . | . . . . . Core Remaining (%) 92 | 100 . 84 . . Volleys Fired 54 | . 11 3 31 9 Largest 2 | . 2 2 2 2 Hottest 80 | . 80 60 60 60 Shots Fired 107 | . 22 6 62 17 Gun 107 | . 22 6 62 17 Cannon . | . . . . . Launcher . | . . . . . Special . | . . . . . Kinetic 84 | . 10 3 60 11 Thermal . | . . . . . Explosive . | . . . . . Electromagnetic 23 | . 12 3 2 6 Robot Hit Streak 14 | . 12 14 10 3 Robot Miss Streak 3 | . 3 1 3 2 Penetration Max . | . . . . . Secondary Targets 3 | . 1 . 2 . Max Gunslinging Chain 1 | . 1 . 1 . Shots Hit Robots 71 | . 15 4 42 10 Core Hits 37 | . 12 1 22 2 Critical Kills . | . . . . . Critical Parts Destroyed 1 | . . . 1 . Critical Strikes 3 | . 1 . 1 1 Destroy 1 | . . . 1 . Corrupt 2 | . 1 . . 1 Melee Attacks 2 | . . . 1 1 Impact 2 | . . . 1 1 Slashing . | . . . . . Piercing . | . . . . . Sneak Attacks . | . . . . . Combat Hostiles . | . . . . . Follow-up Attacks . | . . . . . Damage Inflicted 825 | . 208 44 471 102 Guns 823 | . 208 44 469 102 Cannons . | . . . . . Explosions . | . . . . . Melee . | . . . . . Ramming 2 | . . . 2 . Kinetic 647 | . 98 34 445 70 Thermal . | . . . . . Explosive . | . . . . . Electromagnetic 176 | . 110 10 24 32 Impact . | . . . . . Slashing . | . . . . . Piercing . | . . . . . Highest Corruption . | . . . . . Average Corruption . | . . . . . Corruption Purged . | . . . . . Corruption Blocked . | . . . . . Overload Shots . | . . . . . Overflow Damage . | . . . . . Projectiles . | . . . . . Explosions . | . . . . . Melee . | . . . . . Knockbacks . | . . . . . Impact . | . . . . . Kinetic . | . . . . . Secondary . | . . . . . Self-Inflicted Damage . | . . . . . Shots . | . . . . . Rammed . | . . . . . Targets Rammed 1 | . . . 1 . Kicked 1 | . . . 1 . Crushed . | . . . . . Highest Temperature 18 | . 18 . . . Average Temperature 9 | . 9 . . . Received Heat Transfer 354 | . 39 . 186 129 Siege Activations . | . . . . . Martial Activations . | . . . . . Shielding Activations . | . . . . . Robots Disrupted . | . . . . . Combat Hostiles . | . . . . . Robots Corrupted . | . . . . . Combat Hostiles . | . . . . . Parts Fried . | . . . . . Impact Corruptions . | . . . . . Robots Melted . | . . . . . Combat Hostiles . | . . . . . Parts Melted . | . . . . . Heat Transferred . | . . . . . Parts Sabotaged . | . . . . . Parts Stolen . | . . . . . Parts Stripped . | . . . . . Power Chain Reactions . | . . . . . Alert | -11 -10 -10 -9 -9 ------- Run | Yrd Mat Min Mat Sto Maximum Alert Level 1 | . . . 1 . Low Security (%) 97 | 100 100 100 93 100 Level 1 2 | . . . 6 . Level 2 . | . . . . . Level 3 . | . . . . . Level 4 . | . . . . . Level 5 . | . . . . . High Security . | . . . . . Max Security . | . . . . . Peak Influence 215 | . 61 66 215 92 Initial 87 | . . 12 . 87 Average 41 | . 17 21 69 67 Influence Increases 703 | . 169 106 409 19 Destroy 0b10 Robot/C 400 | . 80 60 260 . Destroy 0b10 Robot/NC 20 | . 10 . 10 . Destroy Leader 106 | . 32 10 64 . Allied During Kill 13 | . . 6 7 . Successful Hack 28 | . 16 . 8 4 Disable Machine 30 | . . . 15 15 Destroy Structure 1 | . 1 . . . Lose Combat Pursuer 105 | . 30 30 45 . Influence Decreases 697 | . 138 137 202 220 Entered New Map 139 | . . 19 . 120 Time Decay 498 | . 138 118 182 60 Lost Part 60 | . . . 20 40 Squads Dispatched 4 | . 2 . 2 . Investigation 2 | . 1 . 1 . Extermination . | . . . . . Reinforcement 2 | . 1 . 1 . Assault . | . . . . . Garrison . | . . . . . Intercept . | . . . . . Searches Triggered . | . . . . . Construction Impeded 1 | . . . 1 . Haulers Reinforced . | . . . . . Active Scanning Responses . | . . . . . Cargo Convoy Interrupts . | . . . . . Stealth | -11 -10 -10 -9 -9 --------- Run | Yrd Mat Min Mat Sto Distress Signals 4 | . 1 . 2 1 Communications Jammed . | . . . . . Distress Signals . | . . . . . Times Spotted 45 | . 15 4 21 5 Peak Tracking Total 7 | . 5 3 7 5 Tactical Retreats 5 | . 1 1 3 . Traps | -11 -10 -10 -9 -9 ------- Run | Yrd Mat Min Mat Sto Traps Triggered 2 | . 1 . 1 . Indirectly . | . . . . . Trap Hack Attempts . | . . . . . Triggered . | . . . . . Disarmed . | . . . . . Reprogrammed . | . . . . . Reused . | . . . . . Traps Extracted . | . . . . . Installed . | . . . . . Triggered . | . . . . . Machines | -11 -10 -10 -9 -9 ---------- Run | Yrd Mat Min Mat Sto Machines Disabled 2 | . . . 1 1 Max in Single Turn 1 | . . . 1 1 Machines Repaired . | . . . . . Machines Dismantled . | . . . . . Machines Sabotaged . | . . . . . Overloaded Fab Kills . | . . . . . Hacking | -11 -10 -10 -9 -9 --------- Run | Yrd Mat Min Mat Sto Machines Accessed 6 | . 2 . 3 1 Terminals 6 | . 2 . 3 1 Fabricators . | . . . . . Repair Stations . | . . . . . Recycling Units . | . . . . . Scanalyzers . | . . . . . Garrison Access . | . . . . . Total Hacks 21 | . 7 . 12 2 Successful 13 | . 6 . 6 1 Failed 8 | . 1 . 6 1 Catastrophic . | . . . . . Database Lockouts . | . . . . . Manual 15 | . 4 . 9 2 Terminals 21 | . 7 . 12 2 Fabricators . | . . . . . Repair Stations . | . . . . . Recycling Units . | . . . . . Scanalyzers . | . . . . . Garrison Access . | . . . . . Terminal Hacks 7 | . 4 . 3 . Record 1 | . 1 . . . Robot Analysis 2 | . 1 . 1 . Prototype ID Bank 1 | . . . 1 . Terminal Index 1 | . 1 . . . Patrol Status 1 | . . . 1 . Zone Layout 1 | . 1 . . . Fabricator Hacks . | . . . . . Repair Station Hacks . | . . . . . Recycling Unit Hacks . | . . . . . Scanalyzer . | . . . . . Garrison Access Hacks . | . . . . . Unauthorized Hacks 6 | . 2 . 3 1 Terminals 6 | . 2 . 3 1 Botnet 6 | . 2 . 3 1 Fabricators . | . . . . . Repair Stations . | . . . . . Recycling Units . | . . . . . Scanalyzers . | . . . . . Garrison Access . | . . . . . Data Cores Recovered 1 | . 1 . . . Used . | . . . . . Hacking Detections 6 | . 2 . 3 1 Full Trace Events . | . . . . . Feedback Events . | . . . . . Feedback Blocked . | . . . . . Robot Schematics Acquired . | . . . . . Robots Built . | . . . . . Authchips . | . . . . . Time . | . . . . . Total Robot Build Rating . | . . . . . Part Schematics Acquired . | . . . . . Parts Built . | . . . . . Authchips . | . . . . . Time . | . . . . . Total Part Build Rating . | . . . . . Part Studies Acquired . | . . . . . Parts Repaired . | . . . . . Time . | . . . . . Parts Recycled . | . . . . . Recycled Matter . | . . . . . Retrieved Matter . | . . . . . Retrieved Components . | . . . . . Parts Scanalyzed . | . . . . . Part Schematics Acquired . | . . . . . Parts Damaged . | . . . . . Bothacking | -11 -10 -10 -9 -9 ------------ Run | Yrd Mat Min Mat Sto Used RIF Installer . | . . . . . Robots Hacked . | . . . . . Non-combat . | . . . . . Combat . | . . . . . Robot Hacks Applied . | . . . . . Relay Couplers Released . | . . . . . Fabnet Peak Effective % . | . . . . . Robots Rewired . | . . . . . Allies Hacked . | . . . . . Hacks Repelled . | . . . . . Allies | -11 -10 -10 -9 -9 -------- Run | Yrd Mat Min Mat Sto Total Allies 3 | . . 3 . . Largest Group 3 | . . 3 3 . Highest-Rated Group 40 | . . 40 40 . Highest-Rated Ally 16 | . . 16 16 . Total Orders . | . . . . . Ally Attacks 35 | . . 14 21 . Total Damage 228 | . . 58 170 . Kills 3 | . . 2 1 . Allies Corrupted . | . . . . . Allies Melted . | . . . . . Intel | -11 -10 -10 -9 -9 ------- Run | Yrd Mat Min Mat Sto Active Infowar (turns) . | . . . . . Robot Analysis Total 2 | . 1 . 1 . Derelict Logs Recovered 1 | . . 1 . . Drone Launches . | . . . . . Drone Recoveries . | . . . . . Exploration | -11 -10 -10 -9 -9 ------------- Run | Yrd Mat Min Mat Sto Turns Passed 1366 | 2 359 397 474 134 Spaces Moved 827 | 1 234 281 232 79 Core 1 | . . . . 1 Treads . | . . . . . Legs 826 | 1 234 281 232 78 Wheels . | . . . . . Hover . | . . . . . Flight . | . . . . . Fastest Speed 120 | 120 120 120 120 120 Average Speed 121 | 120 120 120 124 124 Slowest Speed 300 | 120 120 120 190 300 Overloaded Moves . | . . . . . Propulsion Burnouts . | . . . . . Robots Hopped . | . . . . . Potential Cave-ins . | . . . . . Cave-ins Triggered . | . . . . . Exploration Rate (%) 33 | 2 50 71 26 19 Regions Visited 4 Branch Regions 2 Pre-discovered Areas . | . . . . . Known Exits Taken 1 | . . 1 . . Unknown Exits Taken 3 | 1 1 . 1 . Scrap Searched . | . . . . . Spaces Dug . | . . . . . Terrain Destroyed . | . . . . . Melee . | . . . . . Projectile . | . . . . . AOE . | . . . . . Terrain Rammed . | . . . . . Walls Destroyed . | . . . . . Machines Disabled . | . . . . . Actions | -11 -10 -10 -9 -9 --------- Run | Yrd Mat Min Mat Sto Total 1077 | 4 289 335 352 97 Wait 151 | . 37 52 60 2 Move 823 | . 233 280 231 79 Hop . | . . . . . Pick Up 8 | . 4 . 4 . Fast Attach 7 | . 1 . 6 . Attach 5 | . . . 2 3 Detach 1 | . . . 1 . Swap 12 | . 2 . 8 2 Drop 13 | 4 1 . 7 1 Fire 54 | . 11 3 31 9 Melee 2 | . . . 1 1 Ram . | . . . . . Kick 1 | . . . 1 . Crush . | . . . . . Escape Stasis . | . . . . . Rewire . | . . . . . Trap . | . . . . . Miscellaneous . | . . . . . Route ------- -11/Scrapyard -10/Materials (discovered 2 exits: *Mat / [*Min]) -10/Mines -9/Materials (discovered 2 exits: [*Mat] / *Sto) -9/Storage History --------- Turn | Location | Event 3 | -11/Scrapyard | Discovered new exit (range 0) 3 | -11/Scrapyard | Entered Materials 187 | -10/Materials | Discovered new exit (range 8) 315 | -10/Materials | Build established: Mutant 334 | -10/Materials | Discovered new exit (range 14) 362 | -10/Materials | Entered Mines 516 | -10/Mines | Assisted by bots powering up and referring to "LRC-V3" 679 | -10/Mines | Identified exit to Materials 718 | -10/Mines | YI-UF0 nonchalantly dropped a Grenade Launcher on the ground 759 | -10/Mines | Entered Materials 759 | -9/Materials | Accompanied by 3 allies 759 | -9/Materials | Evolved 2 slots: Utility x2 1019 | -9/Materials | Lost 3 allies 1190 | -9/Materials | Discovered new exit (range 13) 1233 | -9/Materials | Discovered new exit (range 15) 1233 | -9/Materials | Entered Storage 1367 | -9/Storage | Self-destructed Last Messages --------------- 01261_ TF Node disabled. 01261_ Sensor Array tumbles out of TF Node. 01261_ Signal Interpreter tumbles out of TF Node. 01310_ W-16 Scout sends out distress signal. 01313_ Connecting with Terminal... >>Trojan(Botnet) Trojan loaded successfully. Testing... Terminal linked with 0 systems. Awaiting botnet instructions. 01344_ Compression Vault explodes. 01346_ The unstable cave ceiling collapses. 01351_ Aluminum Leg destroyed. 01351_ Compression Vault explodes. 01351_ EM Pulse Gun destroyed. 01354_ Aluminum Leg destroyed. 01356_ The unstable cave ceiling collapses. 01360_ Ion Engine destroyed. 01363_ M-13 Machinist repairs U-05 Engineer. 01366_ Critical hit (Burn: +37). Map ----- +----------------------------------------------------+ | | | | | | | | | | | | | | | | | | | | | | | | | | | | | | | | | | | | | | | | | ????????????????????????### ###?######????? | | ????????????????????????# #?"""""#????? | | ????????????????????????# ##""T""###??? | | ????????????????????????# # ???? | | ????????????????????????# # """ #??? | | ????????????????????????#@ Y # """ #??? | | ????????????????????????##g#g ## """ #??? | | ?????????????????????????# ## + #??? | | ????????????????????????? g ## """ #??? | | ????????????????????????""" m##### ## """ #??? | | ??????????????????????????" #???# ## """ #??? | | ??????????????????????????" #??## ## #??? | | ??????????????????????????" #### ##+########## | | ?????????????????????????? + | | ?????????????????????????? #### T | | ?????????????????????????? #??# ##+########## | | ??????????????????????????####??## ## ???????# | | ?????????????????????????????????# ?# #?????# | | ?????????????????????????????????# ?# #?????# | | ?????????????????????????????????# ?# #?????# | | ?????????????????????????????????# ??# #?????# | | ????????????????????????????????? ??# #?????# | | ????????????????????????????????? ??# #?????# | | ???????????????????????????????? ??+ #?????? | | ????????????????????????????????# ???# #?????? | | ????????????????????????????????##???# #?????? | | ?????????????????????????????????????# #?????? | | ?????????????????????????????????????# #?????? | | ??????????????????????????????????????######?????? | | ?????????????????????????????????????????????????? | +----------------------------------------------------+ Best States ------------- Heat Dissipation 50 Coolant Potential 50 Energy Generation 10 Energy Capacity 250 Matter Stores 300 Matter Capacity 300 Sight Range 16 Terrain Scan Density 10 Evasion (%) 55 Offensive Hacking 10 Item Schematics ----------------- None Robot Schematics ------------------ None Fabricated ------------ Nothing Repaired ---------- Nothing Studied --------- None Alien Tech Used ----------------- None Achievements -------------- None Challenges ------------ None Game ------ Seed WeightInterceptClaymores Manual? 0 Play Time 00:20:07 Cumulative 6.3 hours Start 2025.10.22 @ 16:03:10 End 2025.10.22 @ 16:24:20 Sessions 1 Manual Loads 0 Difficulty Rogue Special Mode None Game No. 8 Rogue 8 Adventurer 0 Explorer 0 Win Type - Total 0 Types 0/0/0/0/0/0/0/0/0/0 Lore% 23 Gallery% 15 Achievement% 16 Wizard Run 0 Options --------- Layout 0 ASCII 0 Keyboard 0 Movement Arrows Keybinds 0 Fullscreen 2 Font 18/X11 Map View 76x50 Zoom Use 0% Tactical HUD 1 Map Filters NONE Filters NONE Steam 1 RUN: 1079a055-ae96-405b-8668-d79902752be3